Cogmind - Beta 14 @@@ ROGUE MODE // 2024.09.03 @ 06:33:18 Player: Coronach Result: Destroyed by Piercing Trap Performance ------------- Evolutions (0) 0 Regions Visited (3) 600 Robots Destroyed (33) 165 Value Destroyed (754) 754 Prototype IDs (11) 220 Alien Tech Used (0) 0 Bonus (0) 0 TOTAL SCORE: 1739 Bonus ------- None Cogmind --------- Core Integrity 0/250 Matter 300/300 Energy 246/250 System Corruption 0% Temperature Cool (3) Movement Walking (200) Ox1 Location -10/Subcaves Parts ------- > --- POWER (1) -------- Ion Engine > --- PROPULSION (2) --- Cargo Legs > --- UTILITY (2+2) ---- High-capacity Storage Unit > --- WEAPON (2) ------- Subdweller Beam Cannon Battle Cannon > --- INVENTORY (20) --- Subdweller Power Source Light Treads Subdweller Monowheel Subdweller Monowheel Medium Storage Unit Subdweller Optics Battle Rifle Battle Rifle Subdweller Machine Gun Subdweller Machine Gun Subdweller Machine Gun Barrage Gun Barrage Gun Barrage Gun Battle Cannon Rocket Launcher Flamer Makeshift Sword Peak State ------------ > --- POWER ------------ Subdweller Power Source > --- PROPULSION ------- Cargo Legs > --- UTILITY ---------- High-capacity Storage Unit Terrain Scanner > --- WEAPON ----------- Rocket Launcher Makeshift Sword > --- INVENTORY -------- Subdweller Monowheel Subdweller Monowheel Subdweller Optics Subdweller Beam Cannon Battle Cannon SUBCON Basin [Rating: 45] Favorites ----------- Power Light Ion Engine Engine Light Ion Engine Propulsion Improved Treads Treads Improved Treads Leg Cargo Legs Utility High-capacity Storage Unit Device Terrain Scanner Storage High-capacity Storage Unit Processor Signal Interpreter Weapon Light Assault Rifle Energy Gun EM Pulse Gun Energy Cannon Subdweller Beam Cannon Ballistic Gun Light Assault Rifle Ballistic Cannon Battle Cannon Launcher Rocket Launcher Special Weapon Mining Laser Slashing Weapon Makeshift Sword Build | -11 -10 -10 -10 ------- Run | Yrd Mat Min Sub Slots Evolved . | . . . . Power . | . . . . Propulsion . | . . . . Utility . | . . . . Weapon . | . . . . Parts Attached 38 | . 11 3 24 Power 5 | . 1 1 3 Engine 5 | . 1 1 3 Core . | . . . . Reactor . | . . . . Propulsion 6 | . 3 . 3 Treads 4 | . 2 . 2 Leg 2 | . 1 . 1 Wheel . | . . . . Hover . | . . . . Flight . | . . . . Utility 7 | . 5 1 1 Device 4 | . 2 1 1 Storage 2 | . 2 . . Processor 1 | . 1 . . Hackware . | . . . . Protection . | . . . . Artifact . | . . . . Weapon 20 | . 2 1 17 Energy Gun 3 | . 1 1 1 Energy Cannon 3 | . . . 3 Ballistic Gun 6 | . . . 6 Ballistic Cannon 1 | . . . 1 Launcher 3 | . . . 3 Special Weapon 2 | . 1 . 1 Impact Weapon . | . . . . Slashing Weapon 2 | . . . 2 Piercing Weapon . | . . . . Special Melee Weapon . | . . . . Unidentified Prototypes . | . . . . Parts Lost 6 | . . 2 4 Power 3 | . . 1 2 Propulsion . | . . . . Utility 2 | . . 1 1 Weapon 1 | . . . 1 Highest Loss Streak 2 | . . 1 2 To Critical Strikes . | . . . . Average Slot Usage (%) 84 | . 96 97 74 Engine 9 | . 14 14 5 Treads 19 | . 24 28 14 Leg 3 | . 3 . 5 Device 11 | . 10 11 11 Storage 13 | . 13 14 12 Energy Gun 4 | . 8 10 . Energy Cannon 4 | . . . 8 Ballistic Gun 10 | . 14 14 8 Ballistic Cannon 1 | . . . 3 Special Weapon 2 | . 5 3 . Slashing Weapon 1 | . . . 3 Peak Build Rating 45 | . 10 10 45 Average Rating 16 | . 9 9 21 On Entrance 8 | 6 6 10 10 Naked Turns . | . . . . Heaviest Build 58 | 13 47 47 58 Greatest Support 55 | 20 46 46 55 Greatest Overweight (x) 15 | . 1 1 15 Average Overweight (x) . | . . . . Largest Inventory Capacity 20 | . 20 20 20 Average Capacity 19 | . 18 20 20 Most Carried 20 | . 10 13 20 Average Carried 12 | . 7 12 14 Final Capacity 20 | 8 20 20 20 Final Carried 18 | 6 10 13 18 Class Distribution -------------------- 100% | Mutant Dominant Class ---------------- Mutant | -10/Materials Mutant | -10/Mines Mutant | -10/Subcaves Resources | -11 -10 -10 -10 ----------- Run | Yrd Mat Min Sub Matter Collected 833 | 200 145 38 450 Remotely . | . . . . Salvage Created 902 | . 239 145 518 Parts 82 | . 27 16 39 Haulers Intercepted 1 | . 1 . . Recyclers Shooed 3 | . 3 . . Parts Field Recycled . | . . . . Retrieved Matter . | . . . . Parts Self-Destructed 21 | . . . 21 Prevented . | . . . . Kills | -11 -10 -10 -10 ------- Run | Yrd Mat Min Sub Combat Hostiles Destroyed 30 | . 7 10 13 Guns 21 | . 7 7 7 Cannons 5 | . . . 5 AOE 4 | . . 3 1 Classes Destroyed 6 | . 4 . 2 Hauler 1 | . 1 . . Watcher 2 | . 2 . . Swarmer 17 | . 6 10 1 Grunt 3 | . 1 . 2 Sentry 1 | . . . 1 Subdweller 9 | . . . 9 Best Kill Streak 3 | . 2 3 2 Combat Bots Only 3 | . 2 3 2 Max Kills in Single Turn 2 | . 2 2 1 Gunslinging 1 | . 1 . . Exploded 2 | . . 2 1 Melee . | . . . . Uniques/NPCs Destroyed . | . . . . Combat | -11 -10 -10 -10 -------- Run | Yrd Mat Min Sub Hostile Shots Fired 174 | . 31 47 96 Missed 62 | . 11 15 36 Damage Taken 1682 | . 164 295 1223 Core 254 | . 27 58 169 Absorbed by Shields . | . . . . Core Remaining (%) 100 | 100 . . . Volleys Fired 108 | . 36 14 58 Largest 2 | . 2 2 2 Hottest 119 | . 100 60 119 Shots Fired 193 | . 71 28 94 Gun 156 | . 70 28 58 Cannon 29 | . . . 29 Launcher 5 | . . . 5 Special 3 | . 1 . 2 Kinetic 106 | . 35 14 57 Thermal 68 | . 36 . 32 Explosive 5 | . . . 5 Electromagnetic 14 | . . 14 . Robot Hit Streak 31 | . 7 7 31 Robot Miss Streak 3 | . 3 2 2 Penetration Max . | . . . . Secondary Targets 2 | . 1 1 . Max Gunslinging Chain 1 | . 1 1 . Shots Hit Robots 124 | . 44 19 61 Core Hits 53 | . 19 10 24 Critical Kills . | . . . . Critical Parts Destroyed 1 | . . . 1 Critical Strikes 4 | . 2 . 2 Burn 3 | . 2 . 1 Destroy 1 | . . . 1 Melee Attacks 23 | . . . 23 Impact . | . . . . Slashing 23 | . . . 23 Piercing . | . . . . Sneak Attacks . | . . . . Combat Hostiles . | . . . . Follow-up Attacks . | . . . . Damage Inflicted 1893 | . 462 225 1206 Guns 1266 | . 462 170 634 Cannons 454 | . . . 454 Explosions 173 | . . 55 118 Melee . | . . . . Ramming . | . . . . Kinetic 823 | . 138 63 622 Thermal 845 | . 324 55 466 Explosive 118 | . . . 118 Electromagnetic 107 | . . 107 . Impact . | . . . . Slashing . | . . . . Piercing . | . . . . Highest Corruption . | . . . . Average Corruption . | . . . . Corruption Purged . | . . . . Corruption Blocked . | . . . . Overload Shots . | . . . . Overflow Damage . | . . . . Projectiles . | . . . . Explosions . | . . . . Melee . | . . . . Knockbacks 1 | . . . 1 Impact . | . . . . Kinetic 1 | . . . 1 Secondary . | . . . . Self-Inflicted Damage 29 | . . 29 . Shots 1 | . . 1 . Rammed . | . . . . Targets Rammed . | . . . . Kicked . | . . . . Crushed . | . . . . Highest Temperature 68 | . 68 40 28 Average Temperature 21 | . 25 20 9 Received Heat Transfer 237 | . 18 . 219 Siege Activations . | . . . . Robots Corrupted . | . . . . Combat Hostiles . | . . . . Parts Fried . | . . . . Impact Corruptions . | . . . . Robots Melted . | . . . . Combat Hostiles . | . . . . Parts Melted 2 | . 1 . 1 Heat Transferred 1974 | . 1110 50 814 Parts Sabotaged . | . . . . Parts Stolen . | . . . . Parts Stripped . | . . . . Power Chain Reactions 1 | . . 1 . Alert | -11 -10 -10 -10 ------- Run | Yrd Mat Min Sub Peak Influence 215 | . 194 215 . Initial . | . . . . Average 64 | . 63 64 . Maximum Alert Level 1 | . . 1 . Low Security (%) 96 | . 100 91 . Level 1 3 | . . 8 . Level 2 . | . . . . Level 3 . | . . . . Level 4 . | . . . . Level 5 . | . . . . High Security . | . . . . Max Security . | . . . . Squads Dispatched . | . . . . Investigation . | . . . . Extermination . | . . . . Reinforcement . | . . . . Assault . | . . . . Garrison . | . . . . Intercept . | . . . . Searches Triggered . | . . . . Construction Impeded . | . . . . Haulers Reinforced . | . . . . Active Scanning Responses . | . . . . Cargo Convoy Interrupts . | . . . . Stealth | -11 -10 -10 -10 --------- Run | Yrd Mat Min Sub Distress Signals . | . . . . Communications Jammed . | . . . . Distress Signals . | . . . . Times Spotted 51 | . 15 18 18 Peak Tracking Total 6 | . 4 6 2 Tactical Retreats 8 | . 2 3 3 Traps | -11 -10 -10 -10 ------- Run | Yrd Mat Min Sub Traps Triggered 2 | . 1 . 1 Indirectly . | . . . . Trap Hack Attempts . | . . . . Triggered . | . . . . Disarmed 6 | . 6 . . Reprogrammed . | . . . . Reused . | . . . . Traps Extracted . | . . . . Installed . | . . . . Triggered 2 | . . 2 . Machines | -11 -10 -10 -10 ---------- Run | Yrd Mat Min Sub Machines Disabled 11 | . . 3 8 Max in Single Turn 3 | . . 1 3 Machines Repaired . | . . . . Machines Dismantled . | . . . . Machines Sabotaged . | . . . . Overloaded Fab Kills . | . . . . Hacking | -11 -10 -10 -10 --------- Run | Yrd Mat Min Sub Machines Accessed 10 | . 7 . 3 Terminals 6 | . 6 . . Fabricators . | . . . . Repair Stations . | . . . . Recycling Units 1 | . 1 . . Scanalyzers . | . . . . Garrison Access . | . . . . Total Hacks 36 | . 24 . 12 Successful 26 | . 14 . 12 Failed 10 | . 10 . . Catastrophic . | . . . . Database Lockouts . | . . . . Manual 21 | . 21 . . Terminals 19 | . 19 . . Fabricators . | . . . . Repair Stations . | . . . . Recycling Units 5 | . 5 . . Scanalyzers . | . . . . Garrison Access . | . . . . Terminal Hacks 16 | . 4 . 12 Record 9 | . . . 9 Open Door 1 | . . . 1 Terminal Index 1 | . 1 . . Locate Traps 1 | . 1 . . Disarm Traps 1 | . 1 . . Zone Layout 1 | . 1 . . Derelict Proto ID Bank 1 | . . . 1 Release Object 1 | . . . 1 Fabricator Hacks . | . . . . Repair Station Hacks . | . . . . Recycling Unit Hacks . | . . . . Scanalyzer . | . . . . Garrison Access Hacks . | . . . . Unauthorized Hacks 10 | . 10 . . Terminals 7 | . 7 . . Botnet 2 | . 2 . . Skim 5 | . 5 . . Fabricators . | . . . . Repair Stations . | . . . . Recycling Units 3 | . 3 . . Monitor 1 | . 1 . . Reject 1 | . 1 . . Recyclers 1 | . 1 . . Scanalyzers . | . . . . Garrison Access . | . . . . Data Cores Recovered . | . . . . Used . | . . . . Hacking Detections 6 | . 6 . . Full Trace Events . | . . . . Feedback Events . | . . . . Feedback Blocked . | . . . . Robot Schematics Acquired . | . . . . Robots Built . | . . . . Authchips . | . . . . Time . | . . . . Total Robot Build Rating . | . . . . Part Schematics Acquired . | . . . . Parts Built . | . . . . Authchips . | . . . . Time . | . . . . Total Part Build Rating . | . . . . Parts Repaired . | . . . . Time . | . . . . Parts Recycled . | . . . . Recycled Matter . | . . . . Retrieved Matter . | . . . . Retrieved Components . | . . . . Parts Scanalyzed . | . . . . Part Schematics Acquired . | . . . . Parts Damaged . | . . . . Bothacking | -11 -10 -10 -10 ------------ Run | Yrd Mat Min Sub Used RIF Installer . | . . . . Robots Hacked . | . . . . Non-combat . | . . . . Combat . | . . . . Robot Hacks Applied . | . . . . Relay Couplers Released . | . . . . Fabnet Peak Effective % . | . . . . Robots Rewired . | . . . . Allies Hacked . | . . . . Hacks Repelled . | . . . . Allies | -11 -10 -10 -10 -------- Run | Yrd Mat Min Sub Total Allies . | . . . . Largest Group . | . . . . Highest-Rated Group . | . . . . Highest-Rated Ally . | . . . . Total Orders . | . . . . Ally Attacks . | . . . . Total Damage . | . . . . Kills . | . . . . Allies Corrupted . | . . . . Allies Melted . | . . . . Intel | -11 -10 -10 -10 ------- Run | Yrd Mat Min Sub Robot Analysis Total . | . . . . Derelict Logs Recovered 3 | . . 2 1 Drone Launches . | . . . . Drone Recoveries . | . . . . Exploration | -11 -10 -10 -10 ------------- Run | Yrd Mat Min Sub Turns Passed 5599 | . 1295 1096 3208 Spaces Moved 2373 | 1 438 514 1420 Core 1 | . . . 1 Treads 1466 | . 310 514 642 Legs 906 | 1 128 . 777 Wheels . | . . . . Hover . | . . . . Flight . | . . . . Fastest Speed 120 | 120 120 160 130 Average Speed 196 | 120 182 200 199 Slowest Speed 800 | 120 240 240 800 Overloaded Moves . | . . . . Propulsion Burnouts . | . . . . Robots Hopped . | . . . . Cave-ins Triggered 1 | . . . 1 Exploration Rate (%) 57 | 2 48 98 80 Regions Visited 3 Branch Regions 2 Pre-discovered Areas 2 | . 1 1 . Known Exits Taken 1 | . . 1 . Unknown Exits Taken 2 | 1 1 . . Scrap Searched 9 | . . 2 7 Spaces Dug 30 | . 1 . 29 Terrain Destroyed 73 | . 1 3 69 Melee 6 | . . . 6 Projectile 5 | . 1 . 4 AOE 62 | . . 3 59 Terrain Rammed . | . . . . Walls Destroyed . | . . . . Machines Disabled . | . . . . Actions | -11 -10 -10 -10 --------- Run | Yrd Mat Min Sub Total 3119 | . 873 556 1690 Wait 471 | . 358 22 91 Move 2369 | . 437 513 1419 Hop . | . . . . Pick Up 52 | . 14 4 34 Fast Attach 11 | . 6 1 4 Attach 9 | . 2 1 6 Detach 13 | . 5 . 8 Swap 18 | . 3 1 14 Drop 43 | . 12 . 31 Fire 108 | . 36 14 58 Melee 23 | . . . 23 Ram . | . . . . Kick . | . . . . Crush . | . . . . Escape Stasis 1 | . . . 1 Rewire . | . . . . Trap . | . . . . Miscellaneous 1 | . . . 1 Route ------- -11/Scrapyard -10/Materials (discovered 5 exits: *Mat x3 / [*Min] / Sub) -10/Mines (discovered 3 exits: *Mat x2 / *Sub) -10/Subcaves (discovered 3 exits: *Mat x2 / [*Rec]) History --------- Turn | Location | Event 1 | -11/Scrapyard | Discovered new exit (range 0) 1 | -11/Scrapyard | Entered Materials 165 | -10/Materials | Discovered new exit (range 6) 305 | -10/Materials | Build established: Mutant 373 | -10/Materials | Discovered new exit (range 12) 717 | -10/Materials | Discovered new exit (range 14) 785 | -10/Materials | Identified exit to Materials 913 | -10/Materials | Learned 2 Storage zone layouts 981 | -10/Materials | Identified exit to Subcaves 1087 | -10/Materials | Learned location of 1 exit from Storage 1126 | -10/Materials | Learned location of 2 exits from Materials 1237 | -10/Materials | Learned location of Mines (-10) 1295 | -10/Materials | Learned 4 Subcaves zone layouts 1296 | -10/Materials | Entered Mines 1306 | -10/Mines | Met a Derelict bent on vengeance 1592 | -10/Mines | Learned location of Storage (-9) 1629 | -10/Mines | Received a Rocket Launcher from a helpful Derelict 1686 | -10/Mines | Discovered exit to Materials (range 12) 1724 | -10/Mines | Discovered exit to Materials (range 14) 2339 | -10/Mines | Discovered exit to Subcaves (range 6) 2392 | -10/Mines | Entered Subcaves 2393 | -10/Subcaves | Identified exit to Materials 3655 | -10/Subcaves | Shifting Twisted Machinery released Sub. Power Source 3668 | -10/Subcaves | Shifting Twisted Machinery released Sub. Beam Cannon 3863 | -10/Subcaves | Shifting Twisted Machinery released Battle Cannon 3867 | -10/Subcaves | Shifting Twisted Machinery released Sub. Machine Gun 3907 | -10/Subcaves | Crushed by falling debris 3930 | -10/Subcaves | Ambushed by Subdweller buried in earth 4017 | -10/Subcaves | Visited 4L-MR0's lab 4044 | -10/Subcaves | Found Cargo Legs 4046 | -10/Subcaves | Attached Cargo Legs, gained temporary slots: Utility x2 4100 | -10/Subcaves | Discovered exit to Materials (range 10) 4231 | -10/Subcaves | Core integrity fell below 50% 4310 | -10/Subcaves | Learned location of 1 exit from Materials 4419 | -10/Subcaves | Found SUBCON Basin 4598 | -10/Subcaves | Core integrity fell below 20% 4665 | -10/Subcaves | Discovered new exit (range 10) 4738 | -10/Subcaves | Released subatomizers from SUBCON Basin 5113 | -10/Subcaves | Shifting Twisted Machinery released Battle Cannon 5113 | -10/Subcaves | Shifting Twisted Machinery released Battle Rifle 5600 | -10/Subcaves | Destroyed by Piercing Trap Last Messages --------------- 04989_ Dropped SUBCON Basin. 04993_ Acquired Barrage Gun. 04996_ Acquired Battle Rifle. 04999_ Acquired Sub. Machine Gun. 05002_ Acquired Med. Storage Unit. 05005_ Acquired Sub. Machine Gun. 05008_ Acquired Sub. Power Source. 05013_ Acquired Barrage Gun. 05019_ Acquired Lgt. Treads. 05022_ Acquired Sub. Machine Gun. 05025_ Acquired Flamer. Battle Cannon falls loose from the Twisted Machinery. Battle Rifle falls loose from the Twisted Machinery. 05128_ Acquired Battle Rifle. 05141_ Acquired Battle Cannon. 05300_ Sub. Optics shoots sparks and powers down. 05300_ Dropped Sub. Machine Gun. 05301_ Acquired Sub. Machine Gun. 05600_ Triggered Piercing Trap. 05600_ Spikes shoot up from the floor. Map ----- +----------------------------------------------------+ | ??#??#?????#????????####### % #??# ##?? | | ???????????#??#???????????#### # ##### ##??? | | ??#??????????????????????????#### ## ##??? | | ????????????????????????????????# ## ## #?## | | ??????????????????????????????#### ## #?# | | ??????????????????????#????#?## ##?# | | ??????????????????????????####% ## #?## | | ??????????????????????#??## ### ##?# | | ????????????#???????#????# %##?#### #?## | | ?????????????????????????# ##?????## ### | | ?#???????????????????????## ##??????## | | #????????????????????????## ##????#?# # | | ????????????????????????## ##????## ## ## | | ???????????????????????## ##???# ##### ##? | | ????#??#???????????????# #???## ### ##? | | ?????#?????????????????#### ##??## ## #? | | ??????????????????????##### ###??# ## ## | | ?????????????????????## #### # | | ????????????????????## ## | | ????????????????????# #### | | #???????????????????## ######## #### # # | | ?????#??#????????????## ## ###^## ######## | | ??????????????????????##?# ## #### #????## | | ??#??????????????#?????### ## ##??## ###### | | ##?????????????????#""## " " #??? # # ## | | ???????????????????# " " @ #? ??# | | ???????????????????# """ ##### ##"??# % | | #???#???#?#????????# " " ""####?# ##?## ## | | ???????????????????# "#####?##?# ### #### ### | | ?#?????#???????????## #????????# ## #?####?? | | #???????????????????##?#####???## #### ### #?? | | ##????????????#???????## ##??### #?# ### #?? | | "#??####??????????????# ##??# !#### # #?? | | #??## "###?????????????# " ##?## & #?? | | "### """ ##????????????## " ### #?? | | ### " #?############# " #### ### #?? | | ## " "< ### ## ### # ##??#####?###?# | | # "" ## " " ##???#???????## | | """### " "" #????#????????## | | ""## # # # # ##""## #??????????????# | | ############################ ##??#???????????? | | ####????????????????#?????????####????#???#??????? | | ????????????????????????#????????????#???????????? | | ???????????????????????????#????#????????#??????#? | | ??????????????????????????????#?#????????????????? | | ??#???????#?????????????????????????????????#????? | | ????????????????????#??????#????????????#????????? | | ???????????????????#?????????????????????????????? | | ????????????????????????#????????????????????????? | | ?????????????????????????????????????????????????? | +----------------------------------------------------+ Best States ------------- Heat Dissipation 25 Energy Generation 15 Energy Capacity 250 Matter Stores 300 Matter Capacity 300 Sight Range 21 Robot Scan Range 14 Terrain Scan Range 14 Terrain Scan Density 10 Evasion (%) 55 Recoil Reduction 2 Item Schematics ----------------- None Robot Schematics ------------------ None Fabricated ------------ Nothing Alien Tech Used ----------------- None Achievements -------------- None Challenges ------------ None Game ------ Seed MachineReinforcedShovel Manual? 0 Play Time 00:57:57 Cumulative 232.2 hours Start 2024.09.02 @ 20:13:38 End 2024.09.03 @ 06:33:18 Sessions 3 Manual Loads 0 Difficulty Rogue Special Mode None Game No. 94 Rogue 91 Adventurer 0 Explorer 3 Win Type - Total 3 Types 2/0/0/1/0/0/0/0/0 Lore% 30 Gallery% 63 Achievement% 51 Wizard Run 0 Options --------- Layout 2 ASCII 0 Keyboard 1 Movement Numpad Keybinds 0 Fullscreen 2 Font 24/Terminus Map View 76x44 Zoom Use 0% Tactical HUD 1 Map Filters NONE Filters NONE Steam 1 RUN: 0cc316f7-7add-438a-852c-8919ccc2895b